fUSD/lending_fUSD_20240421
["ID","MTS","AMOUNT","RATE_DAILY","PERIOD"]
[323100447,1713661840637,-1040.35697366,0.00015945,2]
[323100448,1713661840647,-167.37269117,0.00015945,2]
[323100449,1713661840656,-39977.16572845,0.00015945,2]
[323100450,1713661840665,-540.76435,0.00015945,2]
[323100451,1713661840674,-1300.0,0.00016,2]
[323100452,1713661840683,-718.00116,0.00016009,2]
[323100453,1713661840692,-3510.89049938,0.00016118,2]
[323100454,1713661840701,-1544.1589,0.00016118,2]
[323100455,1713661840710,-237.51,0.00016216,2]
[323100456,1713661840718,-1151.02,0.00016216,2]
[323100457,1713661840727,-500.0,0.00016216,2]
[323100458,1713661840736,-500.0,0.00016216,2]
[323100459,1713661840745,-500.0,0.00016216,2]
[323100460,1713661840754,-500.0,0.00016216,2]
[323100461,1713661840763,-500.0,0.00016216,2]
[323100462,1713661840773,-500.0,0.00016216,2]
[323100463,1713661840782,-500.0,0.00016216,2]
[323100464,1713661840792,-500.0,0.00016216,2]
[323100465,1713661840801,-500.0,0.00016216,2]
[323100466,1713661840810,-500.0,0.00016216,2]
[323100467,1713661840819,-500.0,0.00016216,2]
[323100468,1713661840829,-500.0,0.00016216,2]
[323100469,1713661840838,-500.0,0.00016216,2]
[323100470,1713661840847,-500.0,0.00016216,2]
[323100471,1713661840857,-500.0,0.00016216,2]
[323100472,1713661840871,-500.0,0.00016216,2]
[323100473,1713661840882,-500.0,0.00016216,2]
[323100474,1713661840894,-500.0,0.00016216,2]
[323100475,1713661840903,-500.0,0.00016216,2]
[323100476,1713661840913,-2961.78,0.00016216,2]
[323100477,1713661840923,-383.34857722,0.00016216,2]
[323100478,1713661840932,-500.0,0.00016216,2]
[323100479,1713661840941,-500.0,0.00016216,2]
[323100480,1713661840951,-500.0,0.00016216,2]
[323100481,1713661840961,-513.36,0.00016216,2]
[323100482,1713661840972,-500.0,0.00016216,2]
[323100483,1713661840981,-500.0,0.00016216,2]
[323100484,1713661840990,-500.0,0.00016216,2]
[323100485,1713661840999,-500.0,0.00016216,2]
[323100486,1713661841008,-500.0,0.00016216,2]
[323100487,1713661841017,-500.0,0.00016216,2]
[323100488,1713661841026,-246.73,0.00016216,2]
[323100489,1713661841035,-500.0,0.00016216,2]
[323100490,1713661841045,-500.0,0.00016216,2]
[323100491,1713661841053,-276.9759655,0.00016216,2]
[323100492,1713661841066,-149.4040345,0.00016216,2]
[323100493,1713661841075,-209.32346553,0.00016216,2]
[323100494,1713661841087,-606.58132797,0.00016216,2]
[323100495,1713661841097,-603.04602129,0.00016216,2]
[323100496,1713661841108,-93.39918521,0.00016216,2]
[323100497,1713661841118,-223.25081478,0.00016216,2]
[323100511,1713661846426,-500.0,0.00015943,2]
[323100512,1713661846436,-1040.35697366,0.00015943,2]
[323100513,1713661846446,-276.74918522,0.00016216,2]
[323100514,1713661846454,-5197.88,0.00016216,2]
[323100515,1713661846464,-500.0,0.00016216,2]
[323100516,1713661846473,-500.0,0.00016216,2]
[323100517,1713661846483,-500.0,0.00016216,2]
[323100518,1713661846492,-500.0,0.00016216,2]
[323100519,1713661846502,-699.54,0.00016216,2]
[323100520,1713661846515,-500.0,0.00016216,2]
[323100521,1713661846527,-504.54,0.00016216,2]
[323100522,1713661846539,-202.92,0.00016216,2]
[323100523,1713661846551,-927.98,0.00016216,2]
[323100524,1713661846562,-1281.7,0.00016216,2]
[323100525,1713661846575,-411.06,0.00016216,2]
[323100526,1713661846588,-500.0,0.00016216,2]
[323100527,1713661846599,-500.0,0.00016216,2]
[323100528,1713661846608,-500.0,0.00016216,2]
[323100529,1713661846618,-500.0,0.00016216,2]
[323100530,1713661846627,-1550.18,0.00016216,2]
[323100531,1713661846639,-563.46,0.00016216,2]
[323100532,1713661846650,-500.0,0.00016216,2]
[323100533,1713661846662,-500.0,0.00016216,2]
[323100534,1713661846673,-542.78,0.00016216,2]
[323100535,1713661846690,-500.0,0.00016216,2]
[323100536,1713661846701,-725.32,0.00016217,2]
[323100537,1713661846713,-268.04,0.00016217,2]
[323100538,1713661846725,-500.0,0.00016217,2]
[323100539,1713661846736,-500.0,0.00016217,2]
[323100540,1713661846747,-500.0,0.00016217,2]
[323100541,1713661846760,-500.0,0.00016217,2]
[323100542,1713661846771,-500.0,0.00016217,2]
[323100543,1713661846781,-265.53,0.00016217,2]
[323100544,1713661846793,-281.107274,0.00016217,2]
[323100545,1713661846808,-500.0,0.00016217,2]
[323100546,1713661846822,-173.42,0.00016217,2]
[323100547,1713661846833,-500.0,0.00016217,2]
[323100548,1713661846844,-500.0,0.00016217,2]
[323100549,1713661846857,-500.0,0.00016217,2]
[323100550,1713661846871,-1326.75,0.00016217,2]
[323100551,1713661846881,-500.0,0.00016217,2]
[323100552,1713661846893,-284.23,0.00016217,2]
[323100553,1713661846904,-569.93,0.00016217,2]
[323100554,1713661846916,-500.0,0.00016217,2]
[323100555,1713661846926,-506.57,0.00016217,2]
[323100556,1713661846937,-964.86,0.00016217,2]
[323100557,1713661846949,-868.61,0.00016217,2]
[323100558,1713661846959,-626.54,0.00016217,2]
[323100559,1713661846969,-597.71,0.00016217,2]
[323100560,1713661846978,-500.0,0.00016217,2]
[323100561,1713661846993,-500.0,0.00016217,2]
[323100562,1713661847005,-500.0,0.00016217,2]
[323100563,1713661847017,-500.0,0.00016217,2]
[323100564,1713661847030,-2923.4,0.00016217,2]
[323100565,1713661847042,-500.0,0.00016217,2]
[323100566,1713661847054,-500.0,0.00016217,2]
[323100567,1713661847065,-1136.14,0.00016217,2]
[323100568,1713661847075,-1795.5,0.00016217,2]
[323100569,1713661847087,-1289.09,0.00016217,2]
[323100570,1713661847097,-500.0,0.00016217,2]
[323100571,1713661847108,-757.75,0.00016217,2]
[323100572,1713661847118,-500.0,0.00016217,2]
[323100573,1713661847130,-500.0,0.00016217,2]
[323100574,1713661847141,-527.39,0.00016217,2]
[323100575,1713661847152,-500.0,0.00016217,2]
[323100576,1713661847163,-500.0,0.00016217,2]
[323100577,1713661847175,-3409.81,0.00016217,2]
[323100578,1713661847187,-500.0,0.00016217,2]
[323100579,1713661847198,-989.1,0.00016217,2]
[323100580,1713661847210,-2073.74,0.00016217,2]
[323100581,1713661847224,-500.0,0.00016217,2]
[323100582,1713661847237,-500.0,0.00016217,2]
[323100583,1713661847250,-1253.98,0.00016217,2]
[323100584,1713661847261,-500.0,0.00016217,2]
[323100585,1713661847273,-500.0,0.00016217,2]
[323100586,1713661847283,-500.0,0.00016217,2]
[323100587,1713661847294,-151.0,0.00016217,2]
[323100588,1713661847304,-500.0,0.00016217,2]
[323100589,1713661847313,-500.0,0.00016217,2]
[323100590,1713661847323,-500.0,0.00016217,2]
[323100591,1713661847333,-151.0,0.00016217,2]
[323100592,1713661847343,-500.0,0.00016217,2]
[323100593,1713661847354,-500.0,0.00016217,2]
[323100594,1713661847365,-500.0,0.00016217,2]
[323100595,1713661847376,-500.0,0.00016217,2]
[323100596,1713661847387,-500.0,0.00016217,2]
[323100597,1713661847397,-500.0,0.00016217,2]
[323100598,1713661847409,-1314.79,0.00016217,2]
[323100599,1713661847420,-500.0,0.00016217,2]
[323100600,1713661847430,-500.0,0.00016217,2]
[323100601,1713661847441,-500.0,0.00016217,2]
[323100602,1713661847451,-500.0,0.00016217,2]
[323100603,1713661847461,-500.0,0.00016217,2]
[323100604,1713661847471,-500.0,0.00016217,2]
[323100605,1713661847481,-500.0,0.00016217,2]
[323100606,1713661847491,-1260.91,0.00016218,2]
[323100607,1713661847501,-500.0,0.00016218,2]
[323100608,1713661847511,-240.92,0.00016218,2]
[323100609,1713661847521,-366.36,0.00016218,2]
[323100610,1713661847531,-500.0,0.00016218,2]
[323100611,1713661847541,-178.26,0.00016218,2]
[323100612,1713661847551,-500.0,0.00016218,2]
[323100613,1713661847561,-500.0,0.00016218,2]
[323100614,1713661847573,-500.0,0.00016218,2]
[323100615,1713661847583,-151.0,0.00016218,2]
[323100616,1713661847594,-500.0,0.00016218,2]
[323100617,1713661847604,-500.0,0.00016218,2]
[323100618,1713661847614,-600.58884525,0.00016218,2]
[323100619,1713661847624,-151.0,0.00016218,2]
[323100620,1713661847634,-151.0,0.00016218,2]
[323100621,1713661847644,-151.0,0.00016218,2]
[323100622,1713661847654,-412.89,0.00016219,2]
[323100623,1713661847664,-413.16,0.00016219,2]
[323100624,1713661847674,-909.65,0.00016219,2]
[323100625,1713661847683,-413.16,0.00016219,2]
[323100626,1713661847694,-909.65,0.00016219,2]
[323100627,1713661847703,-909.65,0.00016219,2]
[323100628,1713661847713,-413.16,0.00016219,2]
[323100629,1713661847724,-909.65,0.00016219,2]
[323100630,1713661847733,-247.57,0.00016219,2]
[323100631,1713661847744,-671.17,0.00016219,2]
[323100632,1713661847754,-1454.7988656,0.00016234,2]
[323100633,1713661847764,-3240.66501132,0.00016356,2]
[323100634,1713661847775,-1000.0,0.00016477,2]
[323100635,1713661847785,-500.0,0.00016477,2]
[323100636,1713661847796,-200.0,0.00016478,2]
[323100637,1713661847807,-1000.0,0.00016478,2]
[323100638,1713661847817,-1000.0,0.00016478,2]
[323100639,1713661847830,-500.0,0.00016478,2]
[323100640,1713661847841,-500.0,0.00016478,2]
[323100641,1713661847851,-200.0,0.00016478,2]
[323100642,1713661847861,-1151.02,0.0001649,2]
[323100643,1713661847876,-500.0,0.0001649,2]
[323100644,1713661847886,-512.13931373,0.0001649,2]
[323100645,1713661847896,-500.0,0.0001649,2]
[323100646,1713661847906,-500.0,0.0001649,2]
[323100647,1713661847917,-500.0,0.0001649,2]
[323100648,1713661847927,-500.0,0.0001649,2]
[323100649,1713661847937,-356.0,0.0001649,2]
[323100650,1713661847948,-299.34,0.0001649,2]
[323100651,1713661847958,-500.0,0.0001649,2]
[323100652,1713661847969,-500.0,0.0001649,2]
[323100653,1713661847978,-500.0,0.0001649,2]
[323100654,1713661847989,-500.0,0.0001649,2]
[323100655,1713661847999,-500.0,0.0001649,2]
[323100656,1713661848010,-500.0,0.0001649,2]
[323100657,1713661848020,-500.0,0.0001649,2]
[323100658,1713661848030,-500.0,0.0001649,2]
[323100659,1713661848041,-500.0,0.0001649,2]
[323100660,1713661848051,-2961.78,0.0001649,2]
[323100661,1713661848061,-500.0,0.0001649,2]
[323100662,1713661848071,-500.0,0.0001649,2]
[323100663,1713661848083,-500.0,0.0001649,2]
[323100664,1713661848093,-513.36,0.0001649,2]
[323100665,1713661848103,-500.0,0.0001649,2]
[323100666,1713661848113,-500.0,0.0001649,2]
[323100667,1713661848123,-208.62,0.0001649,2]
[323100668,1713661848135,-500.0,0.0001649,2]
[323100669,1713661848145,-500.0,0.0001649,2]
[323100670,1713661848156,-500.0,0.0001649,2]
[323100671,1713661848166,-500.0,0.0001649,2]
[323100672,1713661848176,-500.0,0.0001649,2]
[323100673,1713661848187,-1512.35,0.0001649,2]
[323100674,1713661848198,-500.0,0.0001649,2]
[323100675,1713661848208,-5197.88,0.0001649,2]
[323100676,1713661848218,-500.0,0.0001649,2]
[323100677,1713661848230,-500.0,0.0001649,2]
[323100678,1713661848241,-500.0,0.0001649,2]
[323100679,1713661848252,-500.0,0.0001649,2]
[323100680,1713661848262,-699.54,0.0001649,2]
[323100681,1713661848272,-500.0,0.0001649,2]
[323100682,1713661848282,-927.98,0.0001649,2]
[323100683,1713661848292,-1281.7,0.0001649,2]
[323100684,1713661848302,-500.0,0.0001649,2]
[323100685,1713661848313,-500.0,0.0001649,2]
[323100686,1713661848324,-500.0,0.0001649,2]
[323100687,1713661848336,-1550.18,0.0001649,2]
[323100688,1713661848347,-500.0,0.0001649,2]
[323100689,1713661848358,-500.0,0.0001649,2]
[323100690,1713661848368,-500.0,0.0001649,2]
[323100691,1713661848379,-725.32,0.00016491,2]
[323100692,1713661848390,-500.0,0.00016491,2]
[323100693,1713661848401,-366.76,0.00016491,2]
[323100694,1713661848413,-500.0,0.00016491,2]
[323100695,1713661848426,-500.0,0.00016491,2]
[323100696,1713661848437,-500.0,0.00016491,2]
[323100697,1713661848448,-500.0,0.00016491,2]
[323100698,1713661848458,-500.0,0.00016491,2]
[323100699,1713661848468,-500.0,0.00016491,2]
[323100700,1713661848478,-1326.75,0.00016491,2]
[323100701,1713661848489,-500.0,0.00016491,2]
[323100702,1713661848500,-500.0,0.00016491,2]
[323100703,1713661848510,-506.57,0.00016491,2]
[323100704,1713661848521,-964.86,0.00016491,2]
[323100705,1713661848532,-868.61,0.00016491,2]
[323100706,1713661848543,-626.54,0.00016491,2]
[323100707,1713661848553,-151.0,0.00016491,2]
[323100708,1713661848563,-597.71,0.00016491,2]
[323100709,1713661848574,-500.0,0.00016491,2]
[323100710,1713661848588,-500.0,0.00016491,2]
[323100711,1713661848599,-500.0,0.00016491,2]
[323100712,1713661848611,-500.0,0.00016491,2]
[323100713,1713661848622,-2923.4,0.00016491,2]
[323100714,1713661848634,-423.98348035,0.00016491,2]
[323100715,1713661848645,-454.87,0.00016491,2]
[323100716,1713661848656,-1136.14,0.00016491,2]
[323100717,1713661848668,-1795.5,0.00016491,2]
[323100718,1713661848679,-1289.09,0.00016491,2]
[323100719,1713661848689,-500.0,0.00016491,2]
[323100720,1713661848699,-757.75,0.00016491,2]
[323100721,1713661848709,-500.0,0.00016491,2]
[323100722,1713661848719,-500.0,0.00016491,2]
[323100723,1713661848730,-527.39,0.00016491,2]
[323100724,1713661848740,-500.0,0.00016491,2]
[323100725,1713661848750,-500.0,0.00016491,2]
[323100726,1713661848760,-3409.81,0.00016491,2]
[323100727,1713661848769,-500.0,0.00016491,2]
[323100728,1713661848779,-989.1,0.00016491,2]
[323100729,1713661848789,-2073.74,0.00016491,2]
[323100730,1713661848799,-500.0,0.00016491,2]
[323100731,1713661848809,-500.0,0.00016491,2]
[323100732,1713661848819,-1253.98,0.00016491,2]
[323100733,1713661848829,-500.0,0.00016491,2]
[323100734,1713661848841,-500.0,0.00016491,2]
[323100735,1713661848851,-500.0,0.00016491,2]
[323100736,1713661848861,-151.0,0.00016491,2]
[323100737,1713661848877,-209.24,0.00016491,2]
[323100738,1713661848887,-500.0,0.00016491,2]
[323100739,1713661848897,-500.0,0.00016491,2]
[323100740,1713661848908,-151.0,0.00016491,2]
[323100741,1713661848918,-500.0,0.00016491,2]
[323100742,1713661848930,-500.0,0.00016491,2]
[323100743,1713661848941,-500.0,0.00016491,2]
[323100744,1713661848951,-500.0,0.00016491,2]
[323100745,1713661848962,-500.0,0.00016491,2]
[323100746,1713661848972,-28.87155674,0.00016491,2]
[323100747,1713661849482,-471.12844326,0.00016491,2]
[323100748,1713661849500,-1314.79,0.00016491,2]
[323100749,1713661849508,-500.0,0.00016491,2]
[323100750,1713661849518,-512.53,0.00016491,2]
[323100751,1713661849528,-500.0,0.00016491,2]
[323100752,1713661849538,-500.0,0.00016491,2]
[323100753,1713661849547,-500.0,0.00016491,2]
[323100754,1713661849559,-500.0,0.00016491,2]
[323100755,1713661849569,-500.0,0.00016491,2]
[323100756,1713661849580,-1260.91,0.00016492,2]
[323100757,1713661849592,-500.0,0.00016492,2]
[323100758,1713661849600,-500.0,0.00016492,2]
[323100759,1713661849609,-500.0,0.00016492,2]
[323100760,1713661849617,-500.0,0.00016492,2]
[323100761,1713661849626,-500.0,0.00016492,2]
[323100762,1713661849635,-151.0,0.00016492,2]
[323100763,1713661849644,-500.0,0.00016492,2]
[323100764,1713661849653,-500.0,0.00016492,2]
[323100765,1713661849662,-211.465184,0.00016492,2]
[323100766,1713661849671,-151.0,0.00016492,2]
[323100767,1713661849680,-452.39963116,0.00016499,2]
[323100768,1713661849690,-1223.62381622,0.000165,2]
[323100769,1713661849699,-2000.0,0.000165,3]
[323100770,1713661849708,-2000.0,0.000165,3]
[323100771,1713661849717,-1754.0,0.000165,3]
[323100772,1713661849726,-1647.0,0.000165,2]
[323100773,1713661849735,-2704.0,0.0001654,2]
[323100774,1713661849744,-130.60473617,0.0001654,2]
[323100812,1713663032285,-207.76281559,0.0001306,2]
[323100813,1713663032295,-484.50710838,0.00013061,2]
[323100814,1713663032307,-232.52289162,0.00013061,2]
[323100815,1713663032316,-5035.17807956,0.00013999,2]
[323100816,1713663032328,-9626.33202452,0.00013999,2]
[323100817,1713663032338,-801.39334886,0.00014,2]
[323100818,1713663032350,-448.60665114,0.00014,2]
[323100819,1713663032361,-792.70937544,0.00014,2]
[323100820,1713663032372,-15213.00655968,0.00014,2]
[323100821,1713663032384,-11356.5808455,0.00014,2]
[323100822,1713663032396,-2637.70321938,0.00014,2]
[323100823,1713663032406,-209.04874731,0.000149,2]
[323100824,1713663032415,-209.04874731,0.000149,2]
[323100825,1713663032424,-500.0,0.00014923,2]
[323100826,1713663032438,-2000.0,0.00014928,3]
[323100827,1713663032447,-168.98,0.00014948,2]
[323100828,1713663032456,-367.85532954,0.00014956,2]
[323100829,1713663032469,-250.0,0.00014971,2]
[323100830,1713663032479,-860.48,0.00014975,2]
[323100831,1713663032488,-188.25341902,0.00014999,2]
[323100832,1713663032498,-218.23800526,0.00015,2]
[323100833,1713663032522,-2000.0,0.00015,2]
[323100834,1713663032533,-353.09574945,0.00015,2]
[323100835,1713663032544,-469.17,0.00015,2]
[323100836,1713663032559,-1959.49624529,0.00015,2]
[323100838,1713663032568,-2034.97668963,0.00015,2]
[323100840,1713663032579,-7978.076391,0.00015,2]
[323100842,1713663032590,-6290.6,0.00015,2]
[323100844,1713663032601,-1501.8336298,0.00015,2]
[323100847,1713663032612,-1403.8,0.00015,2]
[323100849,1713663032623,-1623.1694,0.00015,2]
[323100860,1713663038195,-322.13559348,0.00015,2]
[323100861,1713663038246,-2144.94935783,0.00015,2]
[323100862,1713663038260,-2355.63220896,0.00015,2]
[323100863,1713663038273,-1812.90511922,0.00015,2]
[323100864,1713663038285,-1531.92161008,0.00015,2]
[323100865,1713663038295,-2.21188435,0.00015031,2]
[323100866,1713663038377,-594.48811565,0.00015031,2]
[323100867,1713663038386,-2023.02,0.00015084,2]
[323100868,1713663038396,-499.99,0.00015084,2]
[323100869,1713663038406,-27.98444388,0.00015086,2]
[323100870,1713663038418,-6765.29913022,0.00015086,2]
[323100871,1713663038427,-748.53241802,0.00015087,2]
[323100872,1713663038437,-12736.06,0.00015187,2]
[323100873,1713663038446,-556.43,0.00015251,2]
[323100874,1713663038456,-717.03,0.00015325,2]
[323100875,1713663038465,-1410.65,0.00015671,2]
[323100876,1713663038475,-909.65,0.00015671,2]
[323100877,1713663038484,-909.65,0.00015671,2]
[323100878,1713663038493,-909.65,0.00015671,2]
[323100879,1713663038503,-1034.71,0.00015671,2]
[323100880,1713663038517,-1547.40358542,0.00015735,2]
[323100881,1713663038527,-512.29685992,0.00015744,2]
[323100882,1713663038536,-896.09271811,0.00015745,2]
[323100883,1713663038548,-5.02108189,0.00015745,2]
[323100885,1713663038557,-1464.97891811,0.00015745,2]
[323100887,1713663038568,-1050.8584511,0.00015745,2]
[323100894,1713663038624,-68907.13813079,0.00015745,2]
[323100896,1713663038634,-909.65,0.00015841,2]
[323100898,1713663038644,-12604.92107252,0.000159,2]
[323100900,1713663038653,-589.2,0.00015942,2]
[323100902,1713663038662,-500.0,0.00015942,2]
[323100904,1713663038671,-429.85,0.00015942,2]
[323100906,1713663038681,-418.9,0.00015942,2]
[323100908,1713663038690,-613.25,0.00015943,2]
[323100910,1713663038699,-445.31437047,0.00015943,2]
[323100912,1713663038708,-500.0,0.00015943,2]
[323100914,1713663038716,-529.94,0.00015943,2]
[323100916,1713663038726,-1300.0,0.00016,2]
[323100918,1713663038734,-150.0,0.00016082,2]
[323100920,1713663038744,-305.55,0.00016082,2]
[323100922,1713663038753,-150.0,0.00016082,2]
[323100924,1713663038764,-150.0,0.00016082,2]
[323100926,1713663038774,-700.34,0.00016082,2]
[323100928,1713663038783,-521.81,0.00016082,2]
[323100930,1713663038792,-150.0,0.00016082,2]
[323100932,1713663038801,-350.29,0.00016082,2]
[323100934,1713663038810,-150.0,0.00016082,2]
[323100936,1713663038819,-300.0,0.00016082,2]
[323100938,1713663038829,-150.0,0.00016082,2]
[323100940,1713663038838,-521.81,0.00016082,2]
[323100942,1713663038847,-521.81,0.00016082,2]
[323100944,1713663038856,-350.29,0.00016082,2]
[323100946,1713663038866,-521.81,0.00016082,2]
[323100948,1713663038875,-350.29,0.00016082,2]
[323100950,1713663038884,-521.81,0.00016082,2]
[323100952,1713663038893,-350.29,0.00016082,2]
[323100954,1713663038902,-521.81,0.00016082,2]
[323100956,1713663038911,-150.0,0.00016082,2]
[323100958,1713663038921,-350.29,0.00016082,2]
[323100960,1713663038930,-521.81,0.00016082,2]
[323100962,1713663038940,-350.29,0.00016082,2]
[323100964,1713663038950,-520.45,0.00016082,2]
[323100966,1713663038959,-350.29,0.00016082,2]
[323100968,1713663038968,-349.12,0.00016082,2]
[323100970,1713663038977,-150.0,0.00016082,2]
[323100972,1713663038987,-150.0,0.00016082,2]
[323100974,1713663038996,-1237.629,0.00016116,2]
[323100976,1713663039007,-500.0,0.00016216,2]
[323100978,1713663039017,-326.38,0.00016216,2]
[323100980,1713663039026,-500.0,0.00016217,2]
[323100982,1713663039035,-418.65,0.00016249,2]
[323100984,1713663039044,-150.0,0.00016249,2]
[323100986,1713663039053,-722.42,0.00016249,2]
[323100988,1713663039062,-302.69,0.00016249,2]
[323100990,1713663039071,-214.5882,0.00016378,2]
[323100992,1713663039081,-212.585359,0.00016438,2]
[323100994,1713663039090,-3072.02918701,0.0001644,2]
[323100996,1713663039099,-200.0,0.00016478,2]
[323100998,1713663039109,-1000.0,0.00016478,2]
[323101000,1713663039118,-500.0,0.00016478,2]
[323101002,1713663039127,-200.0,0.00016478,2]
[323101004,1713663039136,-500.0,0.0001649,2]
[323101006,1713663039145,-500.0,0.00016491,2]
[323101008,1713663039154,-635.13,0.00016498,2]
[323101009,1713663039163,-500.0,0.00016499,2]
[323101010,1713663039172,-500.0,0.00016499,2]
[323101012,1713663039182,-500.0,0.00016499,2]
[323101013,1713663039191,-500.0,0.00016499,2]
[323101014,1713663039200,-500.0,0.00016499,2]
[323101015,1713663039210,-500.0,0.00016499,2]
[323101016,1713663039221,-500.0,0.00016499,2]
[323101017,1713663039230,-500.0,0.00016499,2]
[323101018,1713663039239,-515.28,0.00016499,2]
[323101019,1713663039249,-500.0,0.00016499,2]
[323101020,1713663039260,-500.0,0.00016499,2]
[323101021,1713663039273,-500.0,0.00016499,2]
[323101022,1713663039282,-468.43482938,0.00016499,2]
[323101023,1713663039294,-31.56517062,0.00016499,2]
[323101024,1713663039304,-500.0,0.00016499,2]
[323101025,1713663039313,-500.0,0.00016499,2]
[323101026,1713663039322,-500.0,0.00016499,2]
[323101027,1713663039332,-174.06,0.00016499,2]
[323101028,1713663039341,-162.20966626,0.00016499,2]
[323101029,1713663039351,-500.0,0.00016499,2]
[323101030,1713663039363,-500.0,0.00016499,2]
[323101031,1713663039373,-994.13,0.00016499,2]
[323101032,1713663039382,-1127.95,0.00016499,2]
[323101033,1713663039391,-500.0,0.00016499,2]
[323101034,1713663039400,-1636.23,0.00016499,2]
[323101035,1713663039409,-724.84,0.00016499,2]
[323101036,1713663039418,-618.33,0.00016499,2]
[323101037,1713663039428,-365.87362314,0.00016499,2]
[323101038,1713663039438,-512.54,0.00016499,2]
[323101039,1713663039447,-500.0,0.00016499,2]
[323101040,1713663039456,-500.0,0.00016499,2]
[323101041,1713663039465,-500.0,0.00016499,2]
[323101042,1713663039474,-500.0,0.00016499,2]
[323101043,1713663039483,-362.00544359,0.00016499,2]
[323101044,1713663039492,-1420.99,0.00016499,2]
[323101045,1713663039502,-500.0,0.00016499,2]
[323101046,1713663039513,-500.0,0.00016499,2]
[323101047,1713663039522,-500.0,0.00016499,2]
[323101048,1713663039531,-500.0,0.00016499,2]
[323101049,1713663039540,-577.27125299,0.00016499,2]
[323101050,1713663039549,-500.0,0.00016499,2]
[323101051,1713663039558,-500.0,0.00016499,2]
[323101052,1713663039567,-500.0,0.00016499,2]
[323101053,1713663039577,-500.0,0.00016499,2]
[323101054,1713663039586,-1103.3,0.00016499,2]
[323101055,1713663039595,-643.10623926,0.00016499,2]
[323101056,1713663039604,-500.0,0.00016499,2]
[323101057,1713663039614,-500.0,0.00016499,2]
[323101058,1713663039622,-500.0,0.00016499,2]
[323101059,1713663039631,-500.0,0.00016499,2]
[323101060,1713663039641,-500.0,0.00016499,2]
[323101061,1713663039650,-500.0,0.00016499,2]
[323101062,1713663039659,-196.58108373,0.00016499,2]
[323101063,1713663039669,-500.0,0.00016499,2]
[323101064,1713663039679,-1223.62381622,0.000165,2]
[323101065,1713663039688,-352.0,0.000165,2]
[323101066,1713663039697,-1000.0,0.000165,2]
[323101067,1713663039706,-222.0,0.000165,2]
[323101068,1713663039715,-500.0,0.00016539,2]
[323101069,1713663039726,-500.0,0.00016539,2]
[323101070,1713663039735,-1055.1,0.00016539,2]
[323101071,1713663039745,-547.16,0.00016539,2]
[323101072,1713663039755,-1605.34,0.00016539,2]
[323101073,1713663039766,-500.0,0.00016539,2]
[323101074,1713663039775,-609.9,0.00016539,2]
[323101075,1713663039784,-1160.9,0.00016539,2]
[323101076,1713663039794,-500.0,0.00016539,2]
[323101077,1713663039803,-500.0,0.00016539,2]
[323101078,1713663039812,-500.0,0.00016539,2]
[323101079,1713663039822,-467.92,0.00016539,2]